[Event "56th Rubinstein Memorial D 2020"]
[Site "Polanica Zdroj"]
[Date "2020.08.15"]
[Round "1.9"]
[White "Janicki, Rafal"]
[Black "Karalchuk, Alieksej"]
[Result "1-0"]
[ECO "B30"]
[WhiteElo "1851"]
[BlackElo "1493"]
[Annotator "NA RC"]
[PlyCount "147"]
[EventDate "2020.08.15"]
[EventType "swiss"]
[EventCountry "POL"]
[SourceTitle "playchess.com"]
[Source "ChessBase"]
[SourceQuality "1"]
[TimeControl "40/5400+30:1800+30"]

1. e4 {[%emt 0:00:00]} c5 {[%emt 0:00:00]} 2. Nf3 {[%emt 0:00:00]} Nc6 {[%emt 0:00:19]} 3. d3 {[%emt 0:00:28]} g6 {[%emt 0:00:46]} 4. Nbd2 {[%emt 0:00:20]} Bg7 {[%emt 0:00:53]} 5. g3 {[%emt 0:00:13]} d6 {[%emt 0:00:45]} 6. Bg2 {[%emt 0:00:11]} Bg4 {[%emt 0:02:38]} 7. O-O {[%emt 0:01:25]} Qd7 {[%emt 0:02:00]} 8. Re1 {[%emt 0:01:41]} Nf6 {[%emt 0:01:54]} 9. c3 {[%emt 0:01:12]} O-O {[%emt 0:01:36]} 10. Nf1 {[%emt 0:02:05]} Ne5 {[%emt 0:03:29]} 11. Nxe5 {[%emt 0:18:24]} dxe5 {[%emt 0:00:35]} 12. f3 {[%emt 0:00:10]} Be6 {[%emt 0:06:17]} 13. Be3 {[%emt 0:04:15]} Rac8 {[%emt 0:02:28]} 14. Qe2 {[%emt 0:04:59]} Rfd8 {[%emt 0:01:29]} 15. Red1 {[%emt 0:01:06]} b6 {[%emt 0:04:11]} 16. Bf2 {[%emt 0:06:54]} Qb5 {[%emt 0:03:52]} 17. Ne3 {[%emt 0:03:55]} Qd7 {[%emt 0:09:34]} 18. g4 {[%emt 0:08:40]} Rc6 {[%emt 0:03:14]} 19. Bg3 {[%emt 0:03:38]} Rd6 {[%emt 0:03:58]} 20. d4 cxd4 {[%emt 0:07:33]} 21. cxd4 {[%emt 0:03:59]} Rxd4 {[%emt 0:01:37]} 22. Bxe5 {[%emt 0:02:02]} Rd2 {[%emt 0:00:52]} 23. Qe1 {[%emt 0:03:19]} Bh6 {[%emt 0:04:34]} 24. Rxd2 {[%emt 0:19:51]} Qxd2 {[%emt 0:00:12]} 25. Qxd2 {[%emt 0:00:09]} Rxd2 {[%emt 0:00:10]} 26. Nf1 {[%emt 0:00:09]} Rd3 {[%emt 0:03:08]} 27. Kf2 {[%emt 0:02:11]} Nd7 {[%emt 0:04:50]} 28. Bc3 {[%emt 0:00:17]} Bf4 {[%emt 0:03:37]} 29. Re1 {[%emt 0:02:53]} Nc5 {[%emt 0:02:30]} 30. Bb4 {[%emt 0:02:58]} Bxa2 {[%emt 0:07:20]} 31. Ra1 {[%emt 0:00:34]} Bb3 {[%emt 0:01:15]} 32. Rxa7 {[%emt 0:00:23]} e5 {[%emt 0:00:40]} 33. Ra8+ {[%emt 0:01:16]} Kg7 {[%emt 0:00:19]} 34. Rb8 {[%emt 0:00:20]} Na4 {[%emt 0:00:59]} 35. Bf8+ {[%emt 0:02:27]} Kf6 {[%emt 0:01:03]} 36. h4 {[%emt 0:00:38]} g5 {[%emt 0:04:29]} 37. hxg5+ {[%emt 0:01:22]} Bxg5 {[%emt 0:01:40]} 38. Re8 {[%emt 0:01:49]} Rd7 {[%emt 0:03:02]} 39. Rb8 {[%emt 0:00:44]} Bc4 {[%emt 0:01:41]} 40. Bb4 {[%emt 0:01:15]} Be6 {[%emt 0:02:17]} 41. Ng3 {[%emt 0:30:26]} Bh4 {[%emt 0:30:23]} 42. Bf1 {[%emt 0:01:16]} Nxb2 {[%emt 0:01:31]} 43. Rxb6 {[%emt 0:00:21]} Kg5 {[%emt 0:01:10]} 44. Kg2 {[%emt 0:00:32]} Nd1 {[%emt 0:00:56]} 45. Bb5 {[%emt 0:00:52]} Rc7 {[%emt 0:02:13]} 46. Bd2+ {[%emt 0:00:32]} Kg6 {[%emt 0:00:07]} 47. Be8 {[%emt 0:00:34]} Kg7 {[%emt 0:00:34]} 48. Ba4 {[%emt 0:00:25]} Ra7 {[%emt 0:00:23]} 49. Bxd1 {[%emt 0:00:25]} Ra1 {[%emt 0:00:39]} 50. Be2 {[%emt 0:00:17]} Ra2 {[%emt 0:00:17]} 51. Nf1 {[%emt 0:00:36]} Bd8 {[%emt 0:00:49]} 52. Rb8 {[%emt 0:00:27]} Be7 {[%emt 0:00:46]} 53. Kf2 {[%emt 0:00:25]} Bh4+ {[%emt 0:00:44]} 54. Kg2 {[%emt 0:00:29]} Be7 {[%emt 0:00:19]} 55. Rb7 {[%emt 0:00:18]} Bc5 {[%emt 0:00:30]} 56. Rb1 {[%emt 0:00:44]} Kg6 {[%emt 0:00:33]} 57. Rc1 {[%emt 0:00:19]} Bd4 {[%emt 0:00:39]} 58. Bc4 {[%emt 0:00:33]} Bxc4 {[%emt 0:00:32]} 59. Rxc4 {[%emt 0:00:06]} Ra6 {[%emt 0:00:16]} 60. Kg3 {[%emt 0:00:13]} Ra1 {[%emt 0:00:54]} 61. Rc6+ {[%emt 0:00:17]} f6 {[%emt 0:00:04]} 62. Kg2 {[%emt 0:00:24]} Ra2 {[%emt 0:00:27]} 63. Rc1 {[%emt 0:00:10]} Bb6 {[%emt 0:00:30]} 64. Rd1 {[%emt 0:00:09]} Rc2 {[%emt 0:00:22]} 65. Kg3 {[%emt 0:00:17]} Ra2 {[%emt 0:00:40]} 66. Be3 {[%emt 0:00:16]} Ba5 {[%emt 0:00:19]} 67. Bf2 {[%emt 0:00:15]} Rb2 {[%emt 0:00:32]} 68. Rd7 {[%emt 0:01:21]} Rb1 {[%emt 0:00:32]} 69. Ne3 {[%emt 0:00:15]} Rb8 {[%emt 0:00:55]} 70. Nf5 {[%emt 0:00:07]} Rg8 {[%emt 0:01:05]} 71. Nh4+ {[%emt 0:00:14]} Kh6 {[%emt 0:00:44]} 72. Be3+ {[%emt 0:00:03]} Rg5 {[%emt 0:00:06]} 73. Nf5+ {[%emt 0:00:04]} Kg6 {[%emt 0:00:15]} 74. Rg7# 1-0

[Event "56th Rubinstein Memorial D 2020"]
[Site "Polanica Zdroj"]
[Date "2020.08.15"]
[Round "1.10"]
[White "Garwacki, Kornel"]
[Black "Szmidt, Przemyslaw"]
[Result "1/2-1/2"]
[ECO "B03"]
[WhiteElo "1492"]
[BlackElo "1831"]
[Annotator "NA"]
[PlyCount "43"]
[EventDate "2020.08.15"]
[EventType "swiss"]
[EventCountry "POL"]
[SourceTitle "playchess.com"]
[Source "ChessBase"]
[SourceQuality "1"]
[TimeControl "40/5400+30:1800+30"]

1. e4 {[%emt 0:00:00]} Nf6 {[%emt 0:00:53]} 2. e5 {[%emt 0:00:28]} Nd5 {[%emt 0:00:09]} 3. c4 {[%emt 0:00:16]} Nb6 {[%emt 0:00:06]} 4. d4 {[%emt 0:00:20]} d6 {[%emt 0:00:06]} 5. exd6 {[%emt 0:00:04]} cxd6 {[%emt 0:00:06]} 6. Nf3 {[%emt 0:00:19]} g6 {[%emt 0:00:33]} 7. b3 {[%emt 0:00:48]} Bg7 {[%emt 0:00:09]} 8. Bb2 {[%emt 0:00:18]} O-O {[%emt 0:00:10]} 9. Be2 {[%emt 0:00:38]} Nc6 {[%emt 0:02:38]} 10. O-O {[%emt 0:00:47]} e5 {[%emt 0:00:52]} 11. dxe5 {[%emt 0:01:34]} dxe5 {[%emt 0:00:07]} 12. Nc3 {[%emt 0:11:56]} e4 {[%emt 0:02:49]} 13. Nd2 {[%emt 0:00:41]} Re8 {[%emt 0:02:51]} 14. Ndxe4 {[%emt 0:09:02]} Qxd1 {[%emt 0:02:01]} 15. Raxd1 {[%emt 0:00:28]} Rxe4 {[%emt 0:01:08]} 16. Nxe4 {[%emt 0:00:22]} Bxb2 {[%emt 0:00:03]} 17. Rfe1 {[%emt 0:04:04]} Bf5 {[%emt 0:01:45]} 18. Bd3 {[%emt 0:03:33]} Rd8 {[%emt 0:04:34]} 19. Nc5 {[%emt 0:01:05]} Bc8 {[%emt 0:08:13]} 20. Be4 {[%emt 0:03:42]} Rf8 {[%emt 0:02:43]} 21. Bxc6 {[%emt 0:03:53]} bxc6 {[%emt 0:00:08]} 22. Rd6 {[%emt 0:00:41]} 1/2-1/2

[Event "56th Rubinstein Memorial D 2020"]
[Site "Polanica Zdroj"]
[Date "2020.08.15"]
[Round "1.11"]
[White "Wawrzyniak, Pawel"]
[Black "Jurkowska, Magdalena"]
[Result "1/2-1/2"]
[ECO "D55"]
[WhiteElo "1824"]
[BlackElo "1465"]
[Annotator "NA"]
[PlyCount "51"]
[EventDate "2020.08.15"]
[EventType "swiss"]
[EventCountry "POL"]
[SourceTitle "playchess.com"]
[Source "ChessBase"]
[SourceQuality "1"]
[TimeControl "40/5400+30:1800+30"]

1. d4 {[%emt 0:00:00]} d5 {[%emt 0:00:00]} 2. c4 {[%emt 0:00:00]} e6 {[%emt 0:00:07]} 3. Nc3 {[%emt 0:00:04]} Nf6 {[%emt 0:00:23]} 4. Bg5 {[%emt 0:00:28]} Be7 {[%emt 0:00:16]} 5. e3 {[%emt 0:00:57]} O-O {[%emt 0:00:34]} 6. Nf3 {[%emt 0:00:10]} b6 {[%emt 0:02:25]} 7. cxd5 {[%emt 0:03:19]} exd5 {[%emt 0:01:38]} 8. Be2 {[%emt 0:05:04]} Be6 {[%emt 0:01:14]} 9. O-O {[%emt 0:00:14]} c5 {[%emt 0:07:09]} 10. Ne5 {[%emt 0:08:03]} Ne4 {[%emt 0:07:06]} 11. Bf4 {[%emt 0:17:28]} Nxc3 {[%emt 0:03:10]} 12. bxc3 {[%emt 0:00:23]} f6 {[%emt 0:00:58]} 13. Nf3 {[%emt 0:00:56]} c4 {[%emt 0:00:39]} 14. Nd2 {[%emt 0:08:47]} Nc6 {[%emt 0:01:26]} 15. e4 {[%emt 0:10:23]} Na5 {[%emt 0:01:30]} 16. Bg4 {[%emt 0:11:14]} f5 {[%emt 0:05:39]} 17. exf5 {[%emt 0:00:47]} Bxf5 {[%emt 0:00:06]} 18. Bxf5 {[%emt 0:00:06]} Rxf5 {[%emt 0:00:07]} 19. Qg4 {[%emt 0:00:10]} Qf8 {[%emt 0:01:13]} 20. Be5 {[%emt 0:00:28]} Qf7 {[%emt 0:06:10]} 21. f4 {[%emt 0:04:17]} Rf8 {[%emt 0:05:37]} 22. Rae1 {[%emt 0:08:44]} Nc6 {[%emt 0:01:13]} 23. Qd1 {[%emt 0:13:38]} Qg6 {[%emt 0:04:12]} 24. Nf3 {[%emt 0:03:50]} b5 {[%emt 0:01:36]} 25. Qb1 {[%emt 0:01:21]} a6 {[%emt 0:06:46]} 26. Kh1 {[%emt 0:00:37]} 1/2-1/2

[Event "56th Rubinstein Memorial D 2020"]
[Site "Polanica Zdroj"]
[Date "2020.08.15"]
[Round "1.12"]
[White "Ciborowski, Konrad Jr"]
[Black "Podgorski, Maciej"]
[Result "0-1"]
[ECO "B90"]
[WhiteElo "1464"]
[BlackElo "1810"]
[Annotator "NA"]
[PlyCount "94"]
[EventDate "2020.08.15"]
[EventType "swiss"]
[EventCountry "POL"]
[SourceTitle "playchess.com"]
[Source "ChessBase"]
[SourceQuality "1"]
[TimeControl "40/5400+30:1800+30"]

1. e4 {[%emt 0:00:00]} c5 {[%emt 0:00:00]} 2. Nf3 {[%emt 0:00:00]} d6 {[%emt 0:00:00]} 3. d4 {[%emt 0:00:00]} cxd4 {[%emt 0:00:00]} 4. Nxd4 {[%emt 0:00:00]} Nf6 {[%emt 0:00:00]} 5. Nc3 {[%emt 0:00:00]} a6 {[%emt 0:00:04]} 6. f3 {[%emt 0:00:00]} e5 {[%emt 0:00:44]} 7. Nb3 {[%emt 0:00:00]} Be6 {[%emt 0:00:19]} 8. Be3 {[%emt 0:00:18]} Be7 {[%emt 0:00:54]} 9. Qd2 {[%emt 0:00:23]} O-O {[%emt 0:00:09]} 10. g4 {[%emt 0:00:02]} Nbd7 {[%emt 0:01:54]} 11. g5 {[%emt 0:02:33]} Nh5 {[%emt 0:00:32]} 12. O-O-O {[%emt 0:00:26]} b5 {[%emt 0:00:53]} 13. Kb1 {[%emt 0:01:53]} Nb6 {[%emt 0:00:52]} 14. Qf2 {[%emt 0:01:09]} Na4 {[%emt 0:05:19]} 15. Nxa4 {[%emt 0:01:45]} bxa4 {[%emt 0:00:08]} 16. Nc5 {[%emt 0:01:01]} a3 {[%emt 0:02:53]} 17. b3 {[%emt 0:02:23]} Nf4 {[%emt 0:24:05]} 18. Bxf4 {[%emt 0:07:37]} exf4 {[%emt 0:00:13]} 19. h4 {[%emt 0:00:13]} Qb6 {[%emt 0:02:03]} 20. Nd3 {[%emt 0:00:22]} Qxf2 {[%emt 0:05:42]} 21. Nxf2 {[%emt 0:00:04]} f5 {[%emt 0:00:49]} 22. Rd4 {[%emt 0:06:45]} Rf7 {[%emt 0:19:25]} 23. exf5 {[%emt 0:04:11]} Rxf5 {[%emt 0:01:54]} 24. Bh3 {[%emt 0:00:53]} Re5 {[%emt 0:00:36]} 25. Bxe6+ {[%emt 0:01:10]} Rxe6 {[%emt 0:00:04]} 26. Rxf4 {[%emt 0:02:40]} Re2 {[%emt 0:00:59]} 27. Nd3 {[%emt 0:00:23]} Rc8 {[%emt 0:04:18]} 28. Rc1 {[%emt 0:01:02]} Rf8 {[%emt 0:14:50]} 29. Rxf8+ {[%emt 0:02:40]} Kxf8 {[%emt 0:00:06]} 30. Re1 {[%emt 0:00:14]} Rh2 {[%emt 0:01:31]} 31. Re4 {[%emt 0:09:10]} h6 {[%emt 0:06:12]} 32. Kc1 {[%emt 0:05:19]} hxg5 {[%emt 0:01:15]} 33. hxg5 {[%emt 0:00:03]} Bxg5+ {[%emt 0:00:26]} 34. f4 {[%emt 0:00:37]} Bf6 {[%emt 0:01:00]} 35. Re1 {[%emt 0:03:22]} Bc3 {[%emt 0:00:45]} 36. Rf1 {[%emt 0:00:10]} Kf7 {[%emt 0:00:53]} 37. Nf2 {[%emt 0:01:02]} d5 {[%emt 0:01:25]} 38. Kd1 {[%emt 0:00:50]} g6 {[%emt 0:02:02]} 39. Ke2 {[%emt 0:01:06]} Bd4 {[%emt 0:01:47]} 40. Kf3 {[%emt 0:00:18]} Ke6 {[%emt 0:02:02]} 41. Kg3 {[%emt 0:31:56]} Rxf2 {[%emt 0:30:37]} 42. Rxf2 {[%emt 0:00:05]} Bxf2+ {[%emt 0:00:02]} 43. Kxf2 {[%emt 0:00:01]} d4 {[%emt 0:00:07]} 44. Kf3 {[%emt 0:00:29]} Kd5 {[%emt 0:01:27]} 45. b4 {[%emt 0:03:21]} Kc4 {[%emt 0:00:07]} 46. Ke4 {[%emt 0:00:03]} Kc3 {[%emt 0:00:13]} 47. Kd5 {[%emt 0:00:04]} Kb2 {[%emt 0:00:33]} 0-1

[Event "56th Rubinstein Memorial D 2020"]
[Site "Polanica Zdroj"]
[Date "2020.08.15"]
[Round "1.13"]
[White "Szczygiel, Jakub"]
[Black "Kuska, Bartosz"]
[Result "1-0"]
[ECO "A84"]
[WhiteElo "1802"]
[BlackElo "1463"]
[Annotator "NA"]
[PlyCount "59"]
[EventDate "2020.08.15"]
[EventType "swiss"]
[EventCountry "POL"]
[SourceTitle "playchess.com"]
[Source "ChessBase"]
[SourceQuality "1"]
[TimeControl "40/5400+30:1800+30"]

1. d4 {[%emt 0:00:00]} e6 {[%emt 0:00:00]} 2. c4 {[%emt 0:00:00]} f5 {[%emt 0:00:00]} 3. Nc3 {[%emt 0:00:00]} Nf6 {[%emt 0:00:00]} 4. g3 {[%emt 0:00:28]} Be7 {[%emt 0:00:16]} 5. Bg2 {[%emt 0:00:13]} d5 {[%emt 0:01:19]} 6. e3 {[%emt 0:00:33]} c6 {[%emt 0:00:34]} 7. Nge2 {[%emt 0:00:46]} O-O {[%emt 0:00:51]} 8. O-O {[%emt 0:00:14]} Qe8 {[%emt 0:03:18]} 9. b3 {[%emt 0:01:03]} g5 {[%emt 0:03:29]} 10. f3 {[%emt 0:01:12]} Qg6 {[%emt 0:03:12]} 11. Qd3 {[%emt 0:01:16]} g4 {[%emt 0:18:24]} 12. Nf4 {[%emt 0:04:37]} Qg7 {[%emt 0:03:06]} 13. fxg4 {[%emt 0:04:25]} Nxg4 {[%emt 0:02:41]} 14. cxd5 {[%emt 0:02:57]} exd5 {[%emt 0:01:23]} 15. Qe2 {[%emt 0:01:55]} Bf6 {[%emt 0:02:59]} 16. h3 {[%emt 0:15:23]} Nh6 {[%emt 0:07:17]} 17. Nh5 {[%emt 0:00:40]} Qg6 {[%emt 0:01:19]} 18. Qf3 {[%emt 0:03:05]} Kh8 {[%emt 0:04:55]} 19. Ne2 {[%emt 0:00:36]} Be6 {[%emt 0:08:21]} 20. Ba3 {[%emt 0:00:47]} Re8 {[%emt 0:00:51]} 21. g4 {[%emt 0:09:25]} Bg5 {[%emt 0:11:33]} 22. Qg3 {[%emt 0:22:43]} fxg4 {[%emt 0:03:57]} 23. Qe5+ {[%emt 0:00:30]} Kg8 {[%emt 0:00:13]} 24. Nf6+ {[%emt 0:00:24]} Bxf6 {[%emt 0:01:28]} 25. Rxf6 {[%emt 0:00:06]} Bf7 {[%emt 0:01:38]} 26. Rxg6+ {[%emt 0:00:50]} Bxg6 {[%emt 0:00:02]} 27. Qg5 {[%emt 0:01:11]} Nf5 {[%emt 0:01:13]} 28. Nf4 {[%emt 0:00:36]} Kg7 {[%emt 0:01:22]} 29. hxg4 {[%emt 0:00:29]} Nxe3 {[%emt 0:00:27]} 30. Nh5+ {[%emt 0:00:15]} 1-0

[Event "56th Rubinstein Memorial D 2020"]
[Site "Polanica Zdroj"]
[Date "2020.08.15"]
[Round "1.14"]
[White "Perek, Oskar"]
[Black "Sypien, Natan"]
[Result "0-1"]
[ECO "C45"]
[WhiteElo "1447"]
[BlackElo "1794"]
[Annotator "NA"]
[PlyCount "52"]
[EventDate "2020.08.15"]
[EventType "swiss"]
[EventCountry "POL"]
[SourceTitle "playchess.com"]
[Source "ChessBase"]
[SourceQuality "1"]
[TimeControl "40/5400+30:1800+30"]

1. e4 {[%emt 0:00:00]} e5 {[%emt 0:00:00]} 2. Nf3 {[%emt 0:00:00]} Nc6 {[%emt 0:00:00]} 3. d4 {[%emt 0:00:07]} exd4 {[%emt 0:00:00]} 4. Nxd4 {[%emt 0:00:25]} Nf6 {[%emt 0:00:00]} 5. Nxc6 {[%emt 0:00:39]} bxc6 {[%emt 0:00:00]} 6. e5 {[%emt 0:00:12]} Qe7 {[%emt 0:01:08]} 7. Qe2 {[%emt 0:00:34]} Nd5 {[%emt 0:00:17]} 8. c4 {[%emt 0:00:12]} Nb6 {[%emt 0:00:46]} 9. b3 {[%emt 0:01:18]} g6 {[%emt 0:01:37]} 10. Ba3 {[%emt 0:01:41]} d6 {[%emt 0:03:26]} 11. f4 {[%emt 0:00:45]} Bg7 {[%emt 0:03:07]} 12. Nd2 {[%emt 0:00:51]} O-O {[%emt 0:10:13]} 13. O-O-O {[%emt 0:02:01]} a5 {[%emt 0:06:05]} 14. Nf3 {[%emt 0:03:32]} a4 {[%emt 0:04:25]} 15. Qc2 {[%emt 0:04:12]} Rd8 {[%emt 0:14:41]} 16. Bd3 {[%emt 0:03:50]} Bg4 {[%emt 0:12:09]} 17. exd6 {[%emt 0:05:35]} cxd6 {[%emt 0:01:24]} 18. h3 {[%emt 0:01:58]} Bxf3 {[%emt 0:03:43]} 19. gxf3 {[%emt 0:00:25]} Qe3+ {[%emt 0:00:50]} 20. Kb1 {[%emt 0:01:16]} axb3 {[%emt 0:03:26]} 21. Qxb3 {[%emt 0:00:17]} Rdb8 {[%emt 0:06:45]} 22. Bxd6 {[%emt 0:01:03]} Nd7 {[%emt 0:00:37]} 23. Bxb8 {[%emt 0:00:39]} Rxb8 {[%emt 0:00:27]} 24. Qxb8+ {[%emt 0:00:14]} Nxb8 {[%emt 0:00:11]} 25. Rhe1 {[%emt 0:01:10]} Qb6+ {[%emt 0:00:05]} 26. Kc2 {[%emt 0:00:19]} Qb2# {[%emt 0:00:08]} 0-1

[Event "56th Rubinstein Memorial D 2020"]
[Site "Polanica Zdroj"]
[Date "2020.08.15"]
[Round "1.15"]
[White "Borowski, Przemyslaw"]
[Black "Stachowiak, Bruno"]
[Result "1-0"]
[ECO "A25"]
[WhiteElo "1790"]
[BlackElo "1440"]
[Annotator "NA"]
[PlyCount "57"]
[EventDate "2020.08.15"]
[EventType "swiss"]
[EventCountry "POL"]
[SourceTitle "playchess.com"]
[Source "ChessBase"]
[SourceQuality "1"]
[TimeControl "40/5400+30:1800+30"]

1. c4 {[%emt 0:00:00]} e5 {[%emt 0:00:00]} 2. Nc3 {[%emt 0:00:00]} Nc6 {[%emt 0:00:52]} 3. g3 {[%emt 0:00:00]} Nf6 {[%emt 0:01:11]} 4. Bg2 {[%emt 0:00:00]} d6 {[%emt 0:02:19]} 5. d3 {[%emt 0:01:09]} Be7 {[%emt 0:02:17]} 6. Nf3 {[%emt 0:00:39]} O-O {[%emt 0:04:19]} 7. O-O {[%emt 0:00:03]} Be6 {[%emt 0:05:04]} 8. Ng5 {[%emt 0:02:55]} d5 {[%emt 0:05:12]} 9. Nxe6 {[%emt 0:02:06]} fxe6 {[%emt 0:01:21]} 10. Bh3 {[%emt 0:14:37]} Nd4 {[%emt 0:14:14]} 11. e3 {[%emt 0:04:13]} Nf5 {[%emt 0:02:19]} 12. cxd5 {[%emt 0:08:22]} Nxd5 {[%emt 0:01:03]} 13. e4 {[%emt 0:01:50]} Nxc3 {[%emt 0:00:36]} 14. bxc3 {[%emt 0:00:17]} Nd6 {[%emt 0:00:43]} 15. Bxe6+ {[%emt 0:04:38]} Kh8 {[%emt 0:00:25]} 16. f4 {[%emt 0:05:32]} Nb5 {[%emt 0:04:11]} 17. Bb2 {[%emt 0:05:16]} Bc5+ {[%emt 0:02:19]} 18. Kh1 {[%emt 0:01:02]} exf4 {[%emt 0:01:50]} 19. gxf4 {[%emt 0:03:45]} Qh4 {[%emt 0:04:26]} 20. f5 {[%emt 0:04:51]} Bd6 {[%emt 0:00:29]} 21. Qe2 {[%emt 0:00:49]} Bf4 {[%emt 0:06:04]} 22. Rg1 {[%emt 0:01:20]} h5 {[%emt 0:01:38]} 23. c4 {[%emt 0:00:50]} Bh6 {[%emt 0:03:54]} 24. Rg6 {[%emt 0:01:56]} Kh7 {[%emt 0:00:46]} 25. cxb5 {[%emt 0:01:09]} Rae8 {[%emt 0:01:58]} 26. Rag1 {[%emt 0:01:12]} c6 {[%emt 0:01:29]} 27. Rxg7+ {[%emt 0:01:17]} Bxg7 {[%emt 0:00:21]} 28. Rxg7+ {[%emt 0:00:01]} Kh6 {[%emt 0:00:22]} 29. Qe3+ {[%emt 0:00:14]} 1-0

[Event "56th Rubinstein Memorial D 2020"]
[Site "Polanica Zdroj"]
[Date "2020.08.15"]
[Round "1.16"]
[White "Olsztynski, Andrzej"]
[Black "Gromczak, Dariusz"]
[Result "0-1"]
[ECO "B00"]
[WhiteElo "1400"]
[BlackElo "1785"]
[Annotator "NA"]
[PlyCount "56"]
[EventDate "2020.08.15"]
[EventType "swiss"]
[EventCountry "POL"]
[SourceTitle "playchess.com"]
[Source "ChessBase"]
[SourceQuality "1"]
[TimeControl "40/5400+30:1800+30"]

1. e4 {[%emt 0:02:08]} b6 {[%emt 0:00:31]} 2. Nf3 {[%emt 0:00:38]} Bb7 {[%emt 0:00:07]} 3. Nc3 {[%emt 0:00:12]} g6 {[%emt 0:00:42]} 4. d4 {[%emt 0:01:05]} Bg7 {[%emt 0:00:10]} 5. Bc4 {[%emt 0:01:30]} e6 {[%emt 0:00:23]} 6. d5 {[%emt 0:06:32]} Ne7 {[%emt 0:07:46]} 7. dxe6 {[%emt 0:07:12]} fxe6 {[%emt 0:03:24]} 8. e5 {[%emt 0:02:20]} O-O {[%emt 0:02:40]} 9. Bg5 {[%emt 0:15:27]} Bxf3 {[%emt 0:15:23]} 10. gxf3 {[%emt 0:00:54]} Nbc6 {[%emt 0:01:15]} 11. f4 {[%emt 0:00:43]} h6 {[%emt 0:02:17]} 12. Bxe7 {[%emt 0:00:26]} Qxe7 {[%emt 0:01:15]} 13. Qg4 {[%emt 0:01:19]} Qb4 {[%emt 0:11:09]} 14. Bd3 {[%emt 0:14:37]} Nxe5 {[%emt 0:02:57]} 15. Qg3 {[%emt 0:02:35]} Qxf4 {[%emt 0:04:51]} 16. Qxf4 {[%emt 0:01:04]} Nxd3+ {[%emt 0:01:34]} 17. cxd3 {[%emt 0:00:20]} Bxc3+ {[%emt 0:01:52]} 18. bxc3 {[%emt 0:00:07]} Rxf4 {[%emt 0:00:10]} 19. Ke2 {[%emt 0:00:39]} Raf8 {[%emt 0:00:56]} 20. Raf1 {[%emt 0:01:40]} Ra4 {[%emt 0:01:38]} 21. Ra1 {[%emt 0:00:09]} Rf5 {[%emt 0:00:28]} 22. Rhg1 {[%emt 0:00:48]} Kf7 {[%emt 0:00:51]} 23. Rg3 {[%emt 0:02:10]} Rfa5 {[%emt 0:02:27]} 24. Rag1 {[%emt 0:00:27]} g5 {[%emt 0:05:44]} 25. c4 {[%emt 0:00:31]} Rxa2+ {[%emt 0:00:29]} 26. Ke3 {[%emt 0:00:06]} Re5+ {[%emt 0:00:46]} 27. Kd4 {[%emt 0:00:17]} Rf5 {[%emt 0:00:54]} 28. h4 {[%emt 0:00:29]} Rf4+ {[%emt 0:01:05]} 0-1

[Event "56th Rubinstein Memorial D 2020"]
[Site "Polanica Zdroj"]
[Date "2020.08.15"]
[Round "1.17"]
[White "Ciechonski, Piotr"]
[Black "Sidlo, Szymon"]
[Result "1/2-1/2"]
[ECO "C00"]
[WhiteElo "1774"]
[BlackElo "1396"]
[Annotator "NA"]
[PlyCount "102"]
[EventDate "2020.08.15"]
[EventType "swiss"]
[EventCountry "POL"]
[SourceTitle "playchess.com"]
[Source "ChessBase"]
[SourceQuality "1"]
[TimeControl "40/5400+30:1800+30"]

1. e4 {[%emt 0:00:00]} e6 {[%emt 0:00:00]} 2. Qe2 {[%emt 0:00:00]} Nc6 {[%emt 0:02:07]} 3. Nf3 {[%emt 0:00:32]} Nf6 {[%emt 0:04:58]} 4. g3 {[%emt 0:00:43]} d5 {[%emt 0:02:21]} 5. e5 {[%emt 0:00:52]} Nd7 {[%emt 0:01:34]} 6. d4 {[%emt 0:00:38]} Be7 {[%emt 0:05:51]} 7. Bg2 {[%emt 0:00:24]} b6 {[%emt 0:13:09]} 8. h4 {[%emt 0:06:54]} Bb7 {[%emt 0:08:45]} 9. c3 {[%emt 0:00:03]} Na5 {[%emt 0:04:35]} 10. O-O {[%emt 0:02:46]} c5 {[%emt 0:02:24]} 11. Bf4 {[%emt 0:01:29]} Qc8 {[%emt 0:05:44]} 12. Nbd2 {[%emt 0:01:10]} Ba6 {[%emt 0:00:14]} 13. Qe3 {[%emt 0:01:34]} Bxf1 {[%emt 0:00:29]} 14. Bxf1 {[%emt 0:00:40]} c4 {[%emt 0:00:39]} 15. Bh3 {[%emt 0:02:34]} h6 {[%emt 0:01:30]} 16. h5 {[%emt 0:00:06]} b5 {[%emt 0:08:47]} 17. a3 {[%emt 0:01:09]} Qd8 {[%emt 0:00:54]} 18. Re1 {[%emt 0:00:26]} Nf8 19. g4 {[%emt 0:02:07]} Nh7 {[%emt 0:03:39]} 20. Nf1 {[%emt 0:00:51]} Ng5 {[%emt 0:02:07]} 21. Bg2 {[%emt 0:01:42]} Nxf3+ {[%emt 0:01:38]} 22. Qxf3 {[%emt 0:00:36]} Bg5 {[%emt 0:00:50]} 23. Bg3 {[%emt 0:00:26]} Nb3 {[%emt 0:00:41]} 24. Qd1 {[%emt 0:01:45]} a5 {[%emt 0:02:34]} 25. f4 {[%emt 0:00:44]} Bh4 {[%emt 0:01:06]} 26. Kh2 {[%emt 0:04:27]} Bxg3+ {[%emt 0:03:42]} 27. Kxg3 {[%emt 0:00:52]} g6 {[%emt 0:01:33]} 28. hxg6 fxg6 {[%emt 0:00:08]} 29. Qc2 {[%emt 0:02:27]} Kf7 {[%emt 0:01:12]} 30. Ne3 {[%emt 0:00:21]} h5 {[%emt 0:02:11]} 31. g5 {[%emt 0:00:13]} b4 {[%emt 0:03:02]} 32. Bh3 {[%emt 0:05:02]} bxa3 {[%emt 0:01:59]} 33. bxa3 {[%emt 0:02:31]} Qe7 {[%emt 0:01:00]} 34. Rf1 {[%emt 0:01:12]} Rhf8 {[%emt 0:01:03]} 35. Ng2 {[%emt 0:02:44]} Rg8 {[%emt 0:02:40]} 36. Ne3 {[%emt 0:00:38]} Rae8 {[%emt 0:04:22]} 37. Kh4 {[%emt 0:00:08]} Ref8 {[%emt 0:01:08]} 38. Qg2 {[%emt 0:02:43]} Kg7 {[%emt 0:01:16]} 39. Qc2 {[%emt 0:02:04]} Re8 {[%emt 0:01:08]} 40. a4 {[%emt 0:03:55]} Ref8 {[%emt 0:02:21]} 41. Bg2 {[%emt 0:30:34]} Qa3 {[%emt 0:30:24]} 42. Nxd5 {[%emt 0:03:04]} exd5 {[%emt 0:00:31]} 43. Bxd5 {[%emt 0:00:01]} Qxa4 {[%emt 0:01:23]} 44. Bxg8 {[%emt 0:03:54]} Rxg8 {[%emt 0:00:28]} 45. f5 {[%emt 0:00:02]} Qd7 {[%emt 0:00:32]} 46. e6 {[%emt 0:00:55]} Qd6 {[%emt 0:03:09]} 47. fxg6 {[%emt 0:05:00]} Rf8 {[%emt 0:01:02]} 48. Rf7+ {[%emt 0:01:32]} Rxf7 49. exf7 {[%emt 0:00:22]} Qf4+ {[%emt 0:00:09]} 50. Kxh5 {[%emt 0:01:16]} Qf3+ {[%emt 0:00:20]} 51. Kh4 {[%emt 0:00:14]} Qf4+ {[%emt 0:00:01]} 1/2-1/2